bitfinex/quotes_SOLUSD_20220306
["timestamp","ask_amount","ask_price","bid_price","bid_amount"]
[1646545178521,1.54687344,88.259,88.234,308.625391]
[1646545178914,1.54687344,88.26,88.234,308.625391]
[1646545179515,1.54687344,88.259,88.234,308.625391]
[1646545180116,1.54687344,88.26,88.234,308.625391]
[1646545180318,1.54687344,88.259,88.234,308.625391]
[1646545182019,1.54687344,88.264,88.234,308.625391]
[1646545182219,1.54687344,88.266,88.234,308.625391]
[1646545182922,1.54687344,88.265,88.234,308.625391]
[1646545183122,1.54687344,88.266,88.234,308.625391]
[1646545184224,1.54687344,88.267,88.235,30.4641]
[1646545184426,1.54687344,88.27,88.235,30.4641]
[1646545184623,1.54687344,88.269,88.235,30.4641]
[1646545185025,1.54687344,88.282,88.24,16.9986]
[1646545185224,1.54687344,88.284,88.241,62.305]
[1646545185427,1.54687344,88.284,88.241,175.405]
[1646545185627,1.54687344,88.284,88.241,178.24113526]
[1646545185830,1.54687344,88.284,88.242,2.83613526]
[1646545186027,1.54687344,88.288,88.243,5.664]
[1646545186227,62.55557318,88.291,88.243,5.664]
[1646545186429,1.54687344,88.297,88.244,2.83613526]
[1646545186626,1.54687344,88.297,88.245,29.3239]
[1646545186830,1.54687344,88.297,88.25,16.36]
[1646545187130,1.54687344,88.298,88.251,5.664]
[1646545187327,1.54687344,88.299,88.251,5.664]
[1646545187528,49.30479338,88.297,88.252,56.53151615]
[1646545187727,49.30479338,88.297,88.253,5.664]
[1646545196559,49.30479338,88.297,88.251,5.664]
[1646545196761,49.30479338,88.297,88.245,23.6599]
[1646545196964,49.30479338,88.297,88.246,5.664]
[1646545197960,49.30479338,88.297,88.245,23.6599]
[1646545199562,49.30479338,88.297,88.246,5.664]
[1646545201266,49.30479338,88.297,88.25,16.9964]
[1646545201465,49.30479338,88.297,88.251,5.664]
[1646545203168,48.80479338,88.297,88.261,56.54896889]
[1646545203770,23.5948,88.31,88.262,5.663]
[1646545203969,1.54687344,88.311,88.263,22.9015]
[1646545204171,1.54687344,88.316,88.264,5.663]
[1646545204369,1.54687344,88.319,88.264,5.663]
[1646545204570,1.54687344,88.32,88.264,5.663]
[1646545204775,48.59191551,88.319,88.264,5.663]
[1646545204971,48.59191551,88.319,88.265,2.83613526]
[1646545205175,48.59191551,88.319,88.27,33.3526]
[1646545205372,48.59191551,88.319,88.271,5.662]
[1646545205574,48.59191551,88.319,88.271,62.302]
[1646545212581,50.13878895,88.319,88.271,62.302]
[1646545212783,48.59191551,88.319,88.271,62.302]
[1646545214281,1.54687344,88.318,88.271,62.302]
[1646545215082,50.13878895,88.319,88.271,62.302]
[1646545215584,1.54687344,88.318,88.271,62.302]
[1646545216386,1.54687344,88.317,88.271,62.302]
[1646545217187,1.54687344,88.317,88.271,5.662]
[1646545217586,1.54687344,88.317,88.263,22.9015]
[1646545217790,1.54687344,88.302,88.263,22.9015]
[1646545218387,50.6803098,88.301,88.263,22.9015]
[1646545218805,1.54687344,88.3,88.263,22.9015]
[1646545219206,52.22718324,88.301,88.263,22.9015]
[1646545219809,1.54687344,88.3,88.263,22.9015]
[1646545220412,1.54687344,88.298,88.263,22.9015]
[1646545220810,1.54687344,88.298,88.234,365.265391]
[1646545221012,50.6803098,88.301,88.234,365.265391]
[1646545221013,1.54687344,88.297,88.236,22.8967]
[1646545221315,1.54687344,88.294,88.236,22.8967]
[1646545221811,1.54687344,88.294,88.237,46.50745945]
[1646545222012,1.54687344,88.295,88.237,46.50745945]
[1646545222412,1.54687344,88.294,88.237,46.50745945]
[1646545222811,1.54687344,88.293,88.237,46.50745945]
[1646545223514,1.54687344,88.294,88.237,46.50745945]
[1646545223917,1.54687344,88.296,88.237,46.50745945]
[1646545224513,1.54687344,88.297,88.237,46.50745945]
[1646545224713,1.54687344,88.296,88.237,46.50745945]
[1646545225114,1.54687344,88.296,88.238,2.83613526]
[1646545225415,1.54687344,88.297,88.238,2.83613526]
[1646545226617,1.54687344,88.297,88.24,16.9985]
[1646545227017,1.54687344,88.297,88.241,2.83613526]
[1646545232121,1.54687344,88.296,88.241,2.83613526]
[1646545232321,1.54687344,88.295,88.241,2.83613526]
[1646545233722,1.54687344,88.296,88.241,2.83613526]
[1646545236727,1.54687344,88.295,88.241,2.83613526]
[1646545236928,1.54687344,88.295,88.24,16.9985]
[1646545239332,1.54687344,88.294,88.24,16.9985]
[1646545239933,1.54687344,88.293,88.24,16.9985]
[1646545240533,1.54687344,88.294,88.24,16.9985]
[1646545241340,1.54687344,88.293,88.24,16.9985]
[1646545243137,1.54687344,88.292,88.24,16.9985]
[1646545243539,1.54687344,88.291,88.24,16.9985]
[1646545244340,1.54687344,88.292,88.24,16.9985]
[1646545244543,1.54687344,88.292,88.24,33.3585]
[1646545244765,1.54687344,88.291,88.24,33.3585]
[1646545244972,1.54687344,88.292,88.24,33.3585]
[1646545245367,1.54687344,88.29,88.24,33.3585]
[1646545245566,1.54687344,88.289,88.24,33.3585]
[1646545245966,1.54687344,88.29,88.24,33.3585]
[1646545246571,1.54687344,88.29,88.241,2.83613526]
[1646545246868,1.54687344,88.292,88.241,2.83613526]
[1646545247074,1.54687344,88.291,88.241,2.83613526]
[1646545247269,1.54687344,88.286,88.241,2.83613526]
[1646545248377,1.54687344,88.287,88.241,2.83613526]
[1646545249373,1.54687344,88.286,88.241,2.83613526]
[1646545250475,1.54687344,88.287,88.241,2.83613526]
[1646545250777,1.54687344,88.286,88.241,2.83613526]
[1646545251176,1.54687344,88.286,88.25,308.569436]
[1646545251376,1.54687344,88.287,88.251,22.9091]
[1646545251577,23.6412,88.3,88.251,22.9091]
[1646545251578,1.54687344,88.286,88.251,22.9091]
[1646545251778,1.54687344,88.286,88.252,46.25875796]
[1646545252178,1.54687344,88.291,88.252,46.25875796]
[1646545252377,1.54687344,88.287,88.252,46.25875796]
[1646545253478,1.54687344,88.286,88.252,46.25875796]
[1646545253777,1.54687344,88.287,88.252,46.25875796]
[1646545255078,1.54687344,88.29,88.252,46.25875796]
[1646545255279,1.54687344,88.291,88.252,46.25875796]
[1646545255979,1.54687344,88.288,88.252,46.25875796]
[1646545256780,1.54687344,88.289,88.252,46.25875796]
[1646545256980,1.54687344,88.291,88.252,46.25875796]
[1646545262085,1.54687344,88.292,88.252,46.25875796]
[1646545262285,1.54687344,88.292,88.253,5.664]
[1646545263087,1.54687344,88.291,88.253,5.664]
[1646545263988,1.54687344,88.289,88.251,5.664]
[1646545264190,1.54687344,88.286,88.25,308.569436]
[1646545264992,50.61283996,88.285,88.251,50.10607623]
[1646545267595,50.61283996,88.285,88.252,5.664]
[1646545268292,1.54687344,88.285,88.252,5.664]
[1646545268692,1.54687344,88.286,88.252,5.664]
[1646545269693,52.22020147,88.291,88.252,5.664]
[1646545269694,1.54687344,88.287,88.252,5.664]
[1646545269894,1.54687344,88.286,88.252,5.664]
[1646545270098,1.54687344,88.288,88.252,5.664]
[1646545270396,1.54687344,88.287,88.252,5.664]
[1646545270595,1.54687344,88.287,88.253,23.6341]
[1646545270795,1.54687344,88.287,88.254,5.664]
[1646545272706,1.54687344,88.285,88.254,5.664]
[1646545273403,1.54687344,88.285,88.253,23.6341]
[1646545273808,1.54687344,88.284,88.253,23.6341]
[1646545275411,1.54687344,88.285,88.253,23.6341]
[1646545276109,0.54241193,88.286,88.254,5.664]
[1646545277110,0.54241193,88.286,88.26,16.9944]
[1646545277312,0.54241193,88.286,88.261,5.664]
[1646545279130,2.08897674,88.299,88.261,5.664]
[1646545279330,0.5421033,88.299,88.261,5.664]
[1646545280631,0.5421033,88.299,88.26,16.9944]
[1646545281631,19.1833033,88.3,88.261,15.0]
[1646545283133,19.1833033,88.3,88.262,5.663]
[1646545283432,1.54687344,88.308,88.262,5.663]
[1646545283633,1.54687344,88.309,88.263,24.5753]
[1646545283833,1.54687344,88.31,88.263,24.5753]
[1646545284435,0.54426343,88.298,88.263,24.5753]
[1646545287038,0.54426343,88.298,88.264,5.663]
[1646545287235,0.54426343,88.298,88.265,54.46660387]
[1646545288837,1.54687344,88.313,88.265,54.46660387]
[1646545289941,1.54687344,88.314,88.265,54.46660387]
[1646545290339,1.54687344,88.313,88.265,54.46660387]
[1646545290740,1.54687344,88.314,88.265,54.46660387]
[1646545291141,1.54687344,88.313,88.265,54.46660387]
[1646545291542,1.54687344,88.314,88.265,54.46660387]
[1646545291740,1.54687344,88.313,88.265,54.46660387]
[1646545292141,1.54687344,88.314,88.265,54.46660387]
[1646545293146,1.54687344,88.309,88.265,54.46660387]
[1646545293646,1.54687344,88.31,88.265,54.46660387]
[1646545294246,1.54687344,88.311,88.265,54.46660387]
[1646545294745,1.54687344,88.312,88.265,54.46660387]
[1646545296547,1.54687344,88.314,88.265,54.46660387]
[1646545297348,1.54687344,88.313,88.265,54.46660387]
[1646545297949,1.54687344,88.313,88.27,16.9924]
[1646545298151,24.546,88.328,88.27,33.3524]
[1646545298550,1.54687344,88.331,88.271,2.83613526]
[1646545298748,4.62289709,88.378,88.271,2.83613526]
[1646545298749,1.54687344,88.333,88.271,26.04158943]
[1646545298949,48.6793,88.377,88.271,26.04158943]
[1646545298950,64.43047231,88.338,88.272,24.75845029]
[1646545299149,64.43047231,88.338,88.273,24.7348]
[1646545299350,64.43047231,88.338,88.274,113.1]
[1646545299649,64.43047231,88.338,88.273,27.57093526]
[1646545299856,64.43047231,88.338,88.275,2.83613526]
[1646545300050,64.43047231,88.338,88.29,16.36]
[1646545300250,64.43047231,88.338,88.291,77.67248634]
[1646545302352,64.43047231,88.338,88.291,24.7348]
[1646545302552,64.43047231,88.338,88.272,24.2999]
[1646545302753,1.54687344,88.335,88.272,24.2999]
[1646545302951,1.54687344,88.33,88.272,24.2999]
[1646545303352,1.54687344,88.325,88.273,47.9609408]
[1646545303553,54.23394954,88.324,88.273,47.9609408]
[1646545303752,1.54687344,88.322,88.273,47.9609408]
[1646545303952,1.54687344,88.323,88.273,47.9609408]
[1646545304353,1.54687344,88.322,88.273,47.9609408]
[1646545304777,1.54687344,88.323,88.273,47.9609408]
[1646545304978,54.23394954,88.324,88.273,47.9609408]
[1646545305280,52.6870761,88.324,88.273,47.9609408]
[1646545305478,54.23394954,88.324,88.273,47.9609408]
[1646545305879,1.54687344,88.326,88.273,47.9609408]
[1646545306178,1.54687344,88.33,88.273,55.9209408]
[1646545306377,1.54687344,88.332,88.273,55.9209408]
[1646545306580,1.54687344,88.331,88.273,55.9209408]
[1646545306781,1.54687344,88.331,88.28,16.9908]
[1646545306979,24.9753,88.336,88.28,33.3508]
[1646545307179,24.9753,88.336,88.281,24.1489]
[1646545308182,24.9753,88.336,88.29,16.9888]
[1646545308382,24.9753,88.336,88.291,24.1489]
[1646545308681,24.9753,88.336,88.291,33.3489]
[1646545309083,24.9753,88.336,88.292,64.00117731]
[1646545309883,1.54687344,88.348,88.293,2.83613526]
[1646545310082,55.0806692,88.354,88.293,2.83613526]
[1646545310083,1.54687344,88.349,88.293,2.83613526]
[1646545310283,1.54687344,88.35,88.293,59.47613526]
[1646545310484,1.54687344,88.349,88.293,59.47613526]
[1646545310685,1.54687344,88.349,88.294,2.83613526]
[1646545311185,1.54687344,88.35,88.294,2.83613526]
[1646545311585,1.54687344,88.349,88.294,2.83613526]
[1646545311784,1.54687344,88.35,88.3,16.9869]
[1646545311985,1.54687344,88.352,88.301,24.0854]
[1646545312384,25.25207344,88.353,88.301,24.0854]
[1646545312586,1.54687344,88.352,88.301,24.0854]
[1646545313585,23.7052,88.353,88.301,24.0854]
[1646545313786,25.25207344,88.353,88.301,24.0854]
[1646545314385,23.7052,88.353,88.301,24.0854]
[1646545314686,25.25207344,88.353,88.301,24.0854]
[1646545315685,23.7052,88.353,88.302,2.83613526]
[1646545315889,23.7052,88.353,88.301,24.0854]
[1646545320490,25.25207344,88.353,88.301,24.0854]
[1646545320690,23.7052,88.353,88.301,24.0854]
[1646545323794,23.7052,88.353,88.302,2.83613526]
[1646545323993,23.7052,88.353,88.302,9.46613526]
[1646545324293,23.7052,88.353,88.31,16.9848]
[1646545324493,55.0806692,88.354,88.312,54.99938603]
[1646545325396,55.0806692,88.354,88.311,23.9238]
[1646545325596,1.54687344,88.351,88.311,23.9238]
[1646545325998,1.54687344,88.348,88.311,23.9238]
[1646545326396,1.54687344,88.347,88.311,23.9238]
[1646545327000,1.54687344,88.349,88.311,23.9238]
[1646545327200,1.54687344,88.35,88.311,23.9238]
[1646545327500,23.8512,88.353,88.311,23.9238]
[1646545327501,1.54687344,88.349,88.311,23.9238]
[1646545327699,1.54687344,88.347,88.311,23.9238]
[1646545328301,1.54687344,88.344,88.311,23.9238]
[1646545328504,1.54687344,88.343,88.311,23.9238]
[1646545328901,1.54687344,88.345,88.311,23.9238]
[1646545329303,1.54687344,88.346,88.311,23.9238]
[1646545329701,1.54687344,88.347,88.311,23.9238]
[1646545330104,1.54687344,88.348,88.311,23.9238]
[1646545330404,1.54687344,88.35,88.311,23.9238]
[1646545330603,23.8512,88.353,88.311,23.9238]
[1646545333709,81.96028179,88.353,88.311,23.9238]
[1646545335812,1.54687344,88.352,88.311,23.9238]
[1646545336713,83.50715523,88.353,88.311,23.9238]
[1646545337113,81.96028179,88.353,88.311,23.9238]
[1646545337314,1.54687344,88.352,88.311,23.9238]
[1646545338015,83.50715523,88.353,88.311,23.9238]
[1646545338415,81.96028179,88.353,88.311,23.9238]
[1646545342322,83.50715523,88.353,88.311,23.9238]
[1646545343126,25.39807344,88.353,88.311,23.9238]
[1646545343324,23.8512,88.353,88.311,23.9238]
[1646545347845,25.39807344,88.353,88.311,23.9238]
[1646545348446,1.54687344,88.352,88.311,23.9238]
[1646545348647,58.07702492,88.351,88.311,23.9238]
[1646545352552,59.62389836,88.351,88.311,23.9238]
[1646545352953,58.07702492,88.351,88.311,23.9238]
[1646545355753,1.54687344,88.343,88.311,23.9238]
[1646545356354,1.54687344,88.344,88.311,23.9238]
[1646545356553,1.54687344,88.344,88.301,54.3181813]
[1646545356756,1.54687344,88.344,88.302,23.565]
[1646545356953,1.54687344,88.339,88.302,23.565]
[1646545357153,1.54687344,88.339,88.301,54.3181813]
[1646545357553,1.54687344,88.339,88.281,23.565]
[1646545357753,1.54687344,88.338,88.281,23.565]
[1646545357954,1.54687344,88.337,88.281,23.565]
[1646545358555,1.54687344,88.337,88.282,60.84594068]
[1646545359155,1.54687344,88.338,88.282,60.84594068]
[1646545359357,1.54687344,88.337,88.282,60.84594068]
[1646545360655,1.54687344,88.338,88.282,60.84594068]
[1646545361455,1.54687344,88.34,88.282,60.84594068]
[1646545361655,1.54687344,88.339,88.282,60.84594068]
[1646545362654,1.54687344,88.34,88.282,60.84594068]
[1646545365360,1.54687344,88.341,88.282,60.84594068]
[1646545365558,1.54687344,88.34,88.282,60.84594068]
[1646545366160,1.54687344,88.341,88.282,60.84594068]
[1646545368963,1.54687344,88.34,88.282,60.84594068]
[1646545373475,1.54687344,88.337,88.282,60.84594068]
[1646545374379,1.54687344,88.336,88.282,60.84594068]
[1646545374978,1.54687344,88.337,88.282,60.84594068]
[1646545375579,1.54687344,88.336,88.282,60.84594068]
[1646545379482,1.54687344,88.337,88.283,5.66]
[1646545380298,58.07702492,88.351,88.283,5.66]
[1646545380299,1.54687344,88.336,88.283,5.66]
[1646545380502,1.54687344,88.331,88.283,5.66]
[1646545380700,1.54687344,88.331,88.282,60.84594068]
[1646545382601,1.54687344,88.331,88.283,5.662]
[1646545382802,1.54687344,88.33,88.283,5.662]
[1646545384003,1.54687344,88.331,88.282,60.84594068]
[1646545384204,1.54687344,88.329,88.282,60.84594068]
[1646545384903,1.54687344,88.327,88.282,60.84594068]
[1646545385506,1.54687344,88.328,88.282,60.84594068]
[1646545387206,1.54687344,88.328,88.283,5.662]
[1646545387806,1.54687344,88.329,88.283,5.662]
[1646545388205,1.54687344,88.328,88.283,5.662]
[1646545389205,1.54687344,88.329,88.283,5.662]
[1646545391211,1.54687344,88.33,88.283,5.662]
[1646545392607,1.54687344,88.329,88.283,5.662]
[1646545392807,1.54687344,88.33,88.283,5.662]
[1646545393209,1.54687344,88.327,88.283,5.662]
[1646545393809,1.54687344,88.33,88.283,5.662]
[1646545394709,1.54687344,88.326,88.283,5.662]
[1646545394911,1.54687344,88.328,88.283,5.662]
[1646545395412,1.54687344,88.327,88.283,5.662]
[1646545396611,1.54687344,88.328,88.283,5.662]
[1646545396809,1.54687344,88.327,88.283,5.662]
[1646545397011,1.54687344,88.328,88.283,5.662]
[1646545397210,1.54687344,88.327,88.283,5.662]
[1646545397409,1.54687344,88.326,88.283,5.662]
[1646545397611,59.72026414,88.324,88.282,60.84594068]
[1646545400817,61.26713758,88.324,88.283,5.662]
[1646545401020,59.72026414,88.324,88.283,5.662]
[1646545402421,1.54687344,88.325,88.283,5.662]
[1646545402620,1.54687344,88.324,88.283,5.662]
[1646545403422,57.57123924,88.323,88.283,5.662]
[1646545405222,1.54687344,88.324,88.283,5.662]
[1646545405925,1.54687344,88.327,88.283,5.662]
[1646545406128,1.54687344,88.326,88.283,5.662]
[1646545406526,9.27589045,88.35,88.284,26.7904761]
[1646545406527,1.54687344,88.333,88.284,26.7904761]
[1646545406827,1.54687344,88.34,88.285,5.66]
[1646545407027,1.54687344,88.345,88.285,32.4504761]
[1646545407324,1.54687344,88.346,88.29,16.9887]
[1646545407524,1.54687344,88.346,88.291,5.66]
[1646545407725,1.54687344,88.345,88.291,8.49613526]
[1646545408125,1.54687344,88.345,88.292,22.5637]
[1646545408326,1.54687344,88.346,88.293,5.66]
[1646545408826,1.54687344,88.348,88.294,2.83613526]
[1646545409026,1.54687344,88.348,88.295,5.66]
[1646545409226,1.54687344,88.349,88.295,5.66]
[1646545409426,1.54687344,88.348,88.296,2.83613526]
[1646545409627,1.54687344,88.348,88.297,5.66]
[1646545410728,1.54687344,88.349,88.297,5.66]
[1646545411328,1.54687344,88.349,88.3,33.347]
[1646545411528,1.54687344,88.349,88.301,5.66]
[1646545412031,1.54687344,88.35,88.302,23.2954]
[1646545412231,1.54687344,88.35,88.303,5.66]
[1646545412631,1.54687344,88.351,88.303,5.66]
[1646545415153,1.54687344,88.35,88.303,5.66]
[1646545415352,1.54687344,88.339,88.283,23.8736]
[1646545415554,1.54687344,88.337,88.283,23.8736]
[1646545415752,1.54687344,88.336,88.283,23.8736]
[1646545415953,1.54687344,88.335,88.283,23.8736]
[1646545417153,1.54687344,88.34,88.283,23.8736]
[1646545417354,1.54687344,88.34,88.284,2.83613526]
[1646545417955,1.54687344,88.346,88.284,2.83613526]
[1646545419056,1.54687344,88.348,88.284,2.83613526]
[1646545419256,1.54687344,88.348,88.29,16.9888]
[1646545419456,1.54687344,88.348,88.29,33.3488]
[1646545420459,1.54687344,88.347,88.29,33.3488]
[1646545420858,1.54687344,88.348,88.29,33.3488]
[1646545421460,1.54687344,88.347,88.29,33.3488]
[1646545422459,1.54687344,88.348,88.29,33.3488]
[1646545422660,1.54687344,88.347,88.29,33.3488]
[1646545423962,1.54687344,88.346,88.29,33.3488]
[1646545424360,1.54687344,88.347,88.29,33.3488]
[1646545425163,1.54687344,88.346,88.29,33.3488]
[1646545425363,1.54687344,88.347,88.29,33.3488]
[1646545425562,77.56617981,88.353,88.29,33.3488]
[1646545425563,1.54687344,88.346,88.29,33.3488]
[1646545425763,1.54687344,88.347,88.29,33.3488]
[1646545426165,1.54687344,88.346,88.29,33.3488]
[1646545428369,1.54687344,88.347,88.29,33.3488]
[1646545428569,1.54687344,88.348,88.29,33.3488]
[1646545428769,1.54687344,88.35,88.29,33.3488]
[1646545429368,1.54687344,88.349,88.29,33.3488]
[1646545429569,1.54687344,88.35,88.29,33.3488]
[1646545429770,1.54687344,88.349,88.29,33.3488]
[1646545430370,1.54687344,88.348,88.29,33.3488]
[1646545430768,1.54687344,88.349,88.29,33.3488]
[1646545431171,1.54687344,88.348,88.29,33.3488]
[1646545432871,1.54687344,88.347,88.29,33.3488]
[1646545433471,1.54687344,88.346,88.29,33.3488]
[1646545433870,1.54687344,88.347,88.29,33.3488]
[1646545434672,1.54687344,88.345,88.29,33.3488]
[1646545435274,1.54687344,88.345,88.291,5.661]
[1646545435875,1.54687344,88.342,88.291,5.661]
[1646545436376,1.54687344,88.341,88.291,5.661]
[1646545436965,1.54687344,88.341,88.291,5.661]
[1646545438663,1.54687344,88.342,88.291,5.661]
[1646545440068,1.54687344,88.341,88.291,5.661]
[1646545440465,1.54687344,88.334,88.291,5.661]
[1646545440666,1.54687344,88.333,88.285,5.66]
[1646545441067,1.54687344,88.332,88.285,5.66]
[1646545441268,1.54687344,88.333,88.285,5.66]
[1646545441666,1.54687344,88.332,88.285,5.66]
[1646545442266,1.54687344,88.333,88.285,5.66]
[1646545442467,1.54687344,88.332,88.285,5.66]
[1646545443168,1.54687344,88.334,88.285,5.66]
[1646545443667,1.54687344,88.333,88.285,5.66]
[1646545444267,1.54687344,88.334,88.284,2.83613526]
[1646545444867,1.54687344,88.333,88.284,2.83613526]
[1646545445468,1.54687344,88.333,88.285,5.66]
[1646545445870,1.54687344,88.338,88.285,5.66]
[1646545446068,1.54687344,88.341,88.285,5.66]
[1646545446268,1.54687344,88.34,88.285,5.66]
[1646545447170,1.54687344,88.34,88.29,16.9889]
[1646545447368,1.54687344,88.34,88.291,5.66]
[1646545447568,1.54687344,88.339,88.291,5.66]
[1646545447768,1.54687344,88.338,88.291,5.66]
[1646545448368,1.54687344,88.335,88.291,5.66]
[1646545448773,1.54687344,88.337,88.291,5.66]
[1646545449269,1.54687344,88.336,88.29,16.9889]
[1646545449469,1.54687344,88.335,88.29,16.9889]
[1646545449670,1.54687344,88.335,88.284,2.83613526]
[1646545449871,1.54687344,88.334,88.284,2.83613526]
[1646545450169,1.54687344,88.333,88.284,2.83613526]
[1646545450369,1.54687344,88.334,88.284,2.83613526]
[1646545450771,1.54687344,88.333,88.284,2.83613526]
[1646545450970,1.54687344,88.334,88.284,2.83613526]
[1646545453171,1.54687344,88.335,88.284,2.83613526]
[1646545454275,1.54687344,88.336,88.284,2.83613526]
[1646545454576,1.54687344,88.335,88.284,2.83613526]
[1646545455300,54.43376969,88.326,88.285,5.66]
[1646545455496,1.54687344,88.324,88.283,23.8736]
[1646545455697,1.54687344,88.323,88.283,23.8736]
[1646545456097,1.54687344,88.325,88.283,23.8736]
[1646545456397,1.54687344,88.323,88.283,23.8736]
[1646545456598,1.54687344,88.324,88.273,5.662]
[1646545456797,1.54687344,88.323,88.254,28.3932]
[1646545456996,1.54687344,88.313,88.254,28.3932]
[1646545457196,1.54687344,88.308,88.254,28.3932]
[1646545457399,1.54687344,88.306,88.254,28.3932]
[1646545457597,1.54687344,88.305,88.254,28.3932]
[1646545457797,1.54687344,88.304,88.254,28.3932]
[1646545457996,9.53,88.306,88.254,28.3932]
[1646545458999,9.53,88.306,88.254,22.7312]
[1646545462098,9.53,88.306,88.255,5.663]
[1646545462297,1.54687344,88.316,88.255,5.663]
[1646545463502,1.54687344,88.316,88.254,22.7312]
[1646545464200,1.54687344,88.317,88.254,22.7312]
[1646545465001,1.54687344,88.318,88.254,22.7312]
[1646545465204,1.54687344,88.317,88.254,22.7312]
[1646545465604,1.54687344,88.318,88.254,22.7312]
[1646545467811,1.54687344,88.317,88.254,22.7312]
[1646545468210,1.54687344,88.317,88.255,5.663]
[1646545468810,1.54687344,88.316,88.255,5.663]
[1646545469612,1.54687344,88.321,88.255,5.663]
[1646545469811,1.54687344,88.317,88.255,5.663]
[1646545470313,1.54687344,88.318,88.255,5.663]
[1646545470510,1.54687344,88.317,88.255,5.663]
[1646545471511,1.54687344,88.316,88.255,5.663]
[1646545471910,1.54687344,88.317,88.255,5.663]
[1646545472110,1.54687344,88.316,88.255,5.663]
[1646545472510,1.54687344,88.317,88.255,5.663]
[1646545473310,1.54687344,88.316,88.255,5.663]
[1646545474312,1.54687344,88.315,88.255,5.663]
[1646545475617,1.54687344,88.314,88.255,5.663]
[1646545476415,1.54687344,88.31,88.255,5.663]
[1646545477215,1.54687344,88.309,88.255,5.663]
[1646545477416,1.54687344,88.308,88.255,5.663]
[1646545478416,1.54687344,88.309,88.255,5.663]
[1646545479618,1.54687344,88.307,88.255,5.663]
[1646545482020,1.54687344,88.304,88.255,5.663]
[1646545483922,1.54687344,88.299,88.255,5.663]
[1646545484122,52.8141042,88.298,88.255,5.663]
[1646545484721,1.54687344,88.294,88.255,5.663]
[1646545484923,1.54687344,88.295,88.255,5.663]
[1646545485122,1.54687344,88.296,88.255,5.663]
[1646545485827,26.38067344,88.297,88.255,5.663]
[1646545486024,1.54687344,88.293,88.255,5.663]
[1646545486429,1.54687344,88.294,88.255,5.663]
[1646545487926,1.54687344,88.295,88.255,5.663]
[1646545489326,1.54687344,88.295,88.254,22.7312]
[1646545489526,1.54687344,88.291,88.254,22.7312]
[1646545489728,1.54687344,88.29,88.254,22.7312]
[1646545489927,1.54687344,88.291,88.254,22.7312]
[1646545490930,1.54687344,88.292,88.254,22.7312]
[1646545491128,1.54687344,88.291,88.254,22.7312]
[1646545491332,1.54687344,88.292,88.254,22.7312]
[1646545492634,1.54687344,88.293,88.254,22.7312]
[1646545493636,1.54687344,88.292,88.254,22.7312]
[1646545494332,1.54687344,88.293,88.254,22.7312]
[1646545494533,1.54687344,88.292,88.254,22.7312]
[1646545495433,1.54687344,88.293,88.254,22.7312]
[1646545495633,1.54687344,88.294,88.255,5.664]
[1646545495833,1.54687344,88.294,88.254,22.7312]
[1646545496053,1.54687344,88.294,88.241,24.6363]
[1646545496054,1.54687344,88.287,88.202,11.83219338]
[1646545496252,1.54687344,88.273,88.221,24.7382]
[1646545496455,1.54687344,88.273,88.222,5.665]
[1646545496654,1.54687344,88.271,88.222,5.665]
[1646545497053,59.00074629,88.27,88.223,62.13699152]
[1646545497254,24.444,88.269,88.223,62.13699152]
[1646545497656,24.444,88.269,88.224,5.665]
[1646545500356,59.00074629,88.27,88.224,5.665]
[1646545500556,1.54687344,88.279,88.224,5.665]
[1646545500761,1.54687344,88.283,88.224,5.665]
[1646545500957,1.54687344,88.285,88.224,5.665]
[1646545501457,48.8346481,88.282,88.224,5.665]
[1646545501660,48.8346481,88.282,88.225,22.55294084]
[1646545502559,48.8346481,88.282,88.23,17.0001]
[1646545502858,48.8346481,88.282,88.231,24.2288]
[1646545514072,1.54687344,88.28,88.231,24.2288]
[1646545514275,113.1,88.278,88.231,24.2288]
[1646545514473,1.54687344,88.274,88.231,24.2288]
[1646545515278,1.54687344,88.275,88.231,24.2288]
[1646545515474,1.54687344,88.274,88.231,24.2288]
[1646545515773,1.54687344,88.272,88.231,24.2288]
[1646545516478,1.54687344,88.273,88.231,24.2288]
[1646545517175,1.54687344,88.274,88.231,24.2288]
[1646545518776,1.54687344,88.273,88.231,24.2288]